[Event "Titled Tuesday Blitz April 18 Late 2023"]
[White "Demchenko, Anton"]
[Black "Erzhanov, Arman"]
[WhiteFideId "4160258"]
[BlackFideId "4138821"]
[WhiteElo "2545"]
[BlackElo "2138"]
[Result "1-0"]
[Round "02"]
[TimeControl "180+2"]
[Date "2023.04.18"]
[WhiteClock "0:00:09"]
[BlackClock "0:00:37"]

1. e4 {[%clk 0:02:53]}  d6 {[%clk 0:02:43]} 2. d4 {[%clk 0:02:52]}  Nf6 {[%clk 0:02:43]} 3. Nc3 {[%clk 0:02:51]}  c6 {[%clk 0:02:44]} 4. f4 {[%clk 0:02:51]}  d5 {[%clk 0:02:44]} 5. e5 {[%clk 0:02:49]}  Ng8 {[%clk 0:02:45]} 6. Bd3 {[%clk 0:02:48]}  h5 {[%clk 0:02:45]} 7. Nce2 {[%clk 0:02:45]}  g6 {[%clk 0:02:45]} 8. h3 {[%clk 0:02:36]}  Nh6 {[%clk 0:02:45]} 9. Nf3 {[%clk 0:02:34]}  Bf5 {[%clk 0:02:45]} 10. Be3 {[%clk 0:02:32]}  e6 {[%clk 0:02:45]} 11. Bf2 {[%clk 0:02:30]}  Be7 {[%clk 0:02:43]} 12. g3 {[%clk 0:02:26]}  Bxd3 {[%clk 0:02:43]} 13. Qxd3 {[%clk 0:02:26]}  Nd7 {[%clk 0:02:41]} 14. O-O-O {[%clk 0:02:25]}  Qa5 {[%clk 0:02:29]} 15. Kb1 {[%clk 0:02:24]}  O-O-O {[%clk 0:02:30]} 16. Rhg1 {[%clk 0:02:11]}  Nf5 {[%clk 0:02:14]} 17. g4 {[%clk 0:02:05]}  hxg4 {[%clk 0:02:14]} 18. hxg4 {[%clk 0:02:05]}  Nh4 {[%clk 0:02:15]} 19. Ng5 {[%clk 0:02:06]}  Bxg5 {[%clk 0:02:02]} 20. fxg5 {[%clk 0:02:07]}  Rh7 {[%clk 0:01:59]} 21. Rg3 {[%clk 0:01:48]}  Rdh8 {[%clk 0:01:59]} 22. b3 {[%clk 0:01:48]}  Qd8 {[%clk 0:01:58]} 23. Be3 {[%clk 0:01:48]}  Kb8 {[%clk 0:01:55]} 24. a4 {[%clk 0:01:45]}  c5 {[%clk 0:01:56]} 25. Bf4 {[%clk 0:01:40]}  cxd4 {[%clk 0:01:55]} 26. Qxd4 {[%clk 0:01:38]}  Qb6 {[%clk 0:01:46]} 27. Qxb6 {[%clk 0:01:33]}  axb6 {[%clk 0:01:45]} 28. c4 {[%clk 0:01:31]}  dxc4 {[%clk 0:01:43]} 29. Rxd7 {[%clk 0:01:29]}  cxb3 {[%clk 0:01:43]} 30. Rdd3 {[%clk 0:01:25]}  Rc8 {[%clk 0:01:38]} 31. Rc3 {[%clk 0:01:14]}  Rd8 {[%clk 0:01:36]} 32. Rxb3 {[%clk 0:01:11]}  Rd1+ {[%clk 0:01:36]} 33. Ka2 {[%clk 0:01:02]}  Re1 {[%clk 0:01:32]} 34. Rb2 {[%clk 0:01:03]}  Rf1 {[%clk 0:01:31]} 35. Rh3 {[%clk 0:00:56]}  Rf3 {[%clk 0:01:29]} 36. Rh2 {[%clk 0:00:41]}  Rh8 {[%clk 0:01:07]} 37. Bg3 {[%clk 0:00:41]}  Rc8 {[%clk 0:01:02]} 38. Rxh4 {[%clk 0:00:41]}  Rc4 {[%clk 0:01:02]} 39. Rh1 {[%clk 0:00:33]}  Rxa4+ {[%clk 0:01:02]} 40. Kb1 {[%clk 0:00:33]}  Rxg4 {[%clk 0:01:02]} 41. Rd1 {[%clk 0:00:29]}  Rxg5 {[%clk 0:00:57]} 42. Rxb6 {[%clk 0:00:25]}  Kc7 {[%clk 0:00:55]} 43. Rb2 {[%clk 0:00:26]}  Rgxg3 {[%clk 0:00:51]} 44. Nxg3 {[%clk 0:00:25]}  Rxg3 {[%clk 0:00:52]} 45. Rf1 {[%clk 0:00:25]}  Re3 {[%clk 0:00:50]} 46. Rxf7+ {[%clk 0:00:25]}  Kc6 {[%clk 0:00:50]} 47. Rf6 {[%clk 0:00:24]}  Rxe5 {[%clk 0:00:50]} 48. Rxg6 {[%clk 0:00:24]}  b5 {[%clk 0:00:51]} 49. Rgg2 {[%clk 0:00:21]}  Kd6 {[%clk 0:00:50]} 50. Rbd2+ {[%clk 0:00:20]}  Kc6 {[%clk 0:00:50]} 51. Kc2 {[%clk 0:00:19]}  Kc5 {[%clk 0:00:50]} 52. Rge2 {[%clk 0:00:19]}  Rg5 {[%clk 0:00:48]} 53. Rxe6 {[%clk 0:00:19]}  Rf5 {[%clk 0:00:48]} 54. Rde2 {[%clk 0:00:19]}  Kd5 {[%clk 0:00:48]} 55. R6e3 {[%clk 0:00:19]}  Rg5 {[%clk 0:00:48]} 56. Kb3 {[%clk 0:00:19]}  Kd4 {[%clk 0:00:47]} 57. Re8 {[%clk 0:00:18]}  Kd5 {[%clk 0:00:46]} 58. Kb4 {[%clk 0:00:18]}  Kc6 {[%clk 0:00:45]} 59. R8e6+ {[%clk 0:00:17]}  Kd5 {[%clk 0:00:44]} 60. Kxb5 {[%clk 0:00:16]}  Rf5 {[%clk 0:00:45]} 61. Kb4 {[%clk 0:00:16]}  Kd4 {[%clk 0:00:45]} 62. R6e4+ {[%clk 0:00:14]}  Kd5 {[%clk 0:00:45]} 63. Kc3 {[%clk 0:00:14]}  Rf3+ {[%clk 0:00:44]} 64. R4e3 {[%clk 0:00:14]}  Rf5 {[%clk 0:00:45]} 65. Rd3+ {[%clk 0:00:14]}  Kc6 {[%clk 0:00:45]} 66. Re4 {[%clk 0:00:15]}  Ra5 {[%clk 0:00:42]} 67. Rc4+ {[%clk 0:00:15]}  Kb6 {[%clk 0:00:41]} 68. Kd4 {[%clk 0:00:16]}  Rh5 {[%clk 0:00:40]} 69. Rb3+ {[%clk 0:00:16]}  Ka5 {[%clk 0:00:41]} 70. Rb8 {[%clk 0:00:07]}  Rh4+ {[%clk 0:00:41]} 71. Kd5 {[%clk 0:00:08]}  Rh5+ {[%clk 0:00:41]} 72. Ke6 {[%clk 0:00:08]}  Rh6+ {[%clk 0:00:41]} 73. Kf5 {[%clk 0:00:09]}  Rh1 {[%clk 0:00:35]} 74. Rc2 {[%clk 0:00:08]}  Rf1+ {[%clk 0:00:34]} 75. Kg4 {[%clk 0:00:08]}  Rg1+ {[%clk 0:00:34]} 76. Kf3 {[%clk 0:00:08]}  Rf1+ {[%clk 0:00:32]} 77. Rf2 {[%clk 0:00:08]}  Ra1 {[%clk 0:00:33]} 78. Ra8+ {[%clk 0:00:07]}  Kb4 {[%clk 0:00:33]} 79. Rxa1 {[%clk 0:00:08]}  Kc5 {[%clk 0:00:34]} 80. Rd1 {[%clk 0:00:08]}  Kc4 {[%clk 0:00:34]} 81. Rc2+ {[%clk 0:00:08]}  Kb3 {[%clk 0:00:35]} 82. Rc8 {[%clk 0:00:09]}  Kb4 {[%clk 0:00:36]} 83. Rb1+ {[%clk 0:00:09]}  Ka3 {[%clk 0:00:37]} 84. Ra8# {[%clk 0:00:09]} 1-0


[Site "https://www.chess.com"]

[Event "Titled Tuesday Blitz April 18 Late 2023"]
[White "Gatterer, Florian"]
[Black "Rodshtein, Maxim"]
[WhiteFideId "811688"]
[BlackFideId "2806851"]
[WhiteElo "2221"]
[BlackElo "2555"]
[Result "0-1"]
[Round "02"]
[TimeControl "180+2"]
[Date "2023.04.18"]
[WhiteClock "0:00:39"]
[BlackClock "0:01:57"]

1. d4 {[%clk 0:03:00]}  g6 {[%clk 0:03:00]} 2. e4 {[%clk 0:02:59]}  Bg7 {[%clk 0:03:01]} 3. Nc3 {[%clk 0:02:59]}  d6 {[%clk 0:03:01]} 4. Be3 {[%clk 0:02:59]}  a6 {[%clk 0:03:01]} 5. Nf3 {[%clk 0:02:59]}  b5 {[%clk 0:02:59]} 6. Bd3 {[%clk 0:03:00]}  Bb7 {[%clk 0:02:59]} 7. h4 {[%clk 0:02:58]}  h6 {[%clk 0:02:58]} 8. e5 {[%clk 0:02:53]}  e6 {[%clk 0:02:52]} 9. Be4 {[%clk 0:02:47]}  Bxe4 {[%clk 0:02:31]} 10. Nxe4 {[%clk 0:02:46]}  Ne7 {[%clk 0:02:31]} 11. Qe2 {[%clk 0:02:22]}  Nd5 {[%clk 0:02:27]} 12. O-O-O {[%clk 0:02:16]}  Nc6 {[%clk 0:02:27]} 13. exd6 {[%clk 0:02:08]}  cxd6 {[%clk 0:02:26]} 14. Kb1 {[%clk 0:02:03]}  Rc8 {[%clk 0:02:20]} 15. c3 {[%clk 0:02:02]}  Na5 {[%clk 0:02:17]} 16. Nfd2 {[%clk 0:01:55]}  Qd7 {[%clk 0:02:16]} 17. Rc1 {[%clk 0:01:43]}  f5 {[%clk 0:02:12]} 18. Ng3 {[%clk 0:01:12]}  f4 {[%clk 0:02:11]} 19. Qg4 {[%clk 0:01:05]}  Qf7 {[%clk 0:02:08]} 20. Nge4 {[%clk 0:01:02]}  Kd7 {[%clk 0:02:04]} 21. Rhf1 {[%clk 0:00:53]}  Qf5 {[%clk 0:01:59]} 22. Qxf5 {[%clk 0:00:39]}  gxf5 {[%clk 0:01:57]} 0-1


[Site "https://www.chess.com"]

[Event "Titled Tuesday Blitz April 18 Late 2023"]
[White "Meunier-Pion, Jean"]
[Black "Szpar, Milosz"]
[WhiteFideId "20685327"]
[BlackFideId "1184989"]
[WhiteElo "2124"]
[BlackElo "2436"]
[Result "1-0"]
[Round "02"]
[TimeControl "180+2"]
[Date "2023.04.18"]
[WhiteClock "0:00:38"]
[BlackClock "0:01:26"]

1. e4 {[%clk 0:03:00]}  c5 {[%clk 0:03:00]} 2. Nf3 {[%clk 0:03:00]}  d6 {[%clk 0:02:59]} 3. d4 {[%clk 0:03:01]}  cxd4 {[%clk 0:03:00]} 4. Nxd4 {[%clk 0:03:01]}  Nf6 {[%clk 0:03:00]} 5. Nc3 {[%clk 0:03:02]}  Nc6 {[%clk 0:03:00]} 6. Bg5 {[%clk 0:03:01]}  e6 {[%clk 0:02:59]} 7. Qd2 {[%clk 0:03:00]}  a6 {[%clk 0:02:59]} 8. O-O-O {[%clk 0:03:00]}  h6 {[%clk 0:02:59]} 9. Bxf6 {[%clk 0:02:59]}  Qxf6 {[%clk 0:02:57]} 10. Nxc6 {[%clk 0:02:45]}  bxc6 {[%clk 0:02:56]} 11. f4 {[%clk 0:02:46]}  Qd8 {[%clk 0:02:47]} 12. Bc4 {[%clk 0:02:36]}  Rb8 {[%clk 0:02:44]} 13. f5 {[%clk 0:02:34]}  d5 {[%clk 0:02:41]} 14. exd5 {[%clk 0:02:33]}  cxd5 {[%clk 0:02:41]} 15. fxe6 {[%clk 0:01:32]}  fxe6 {[%clk 0:02:40]} 16. Bd3 {[%clk 0:01:30]}  Qg5 {[%clk 0:02:36]} 17. Qxg5 {[%clk 0:01:22]}  hxg5 {[%clk 0:02:35]} 18. Bg6+ {[%clk 0:01:22]}  Kd7 {[%clk 0:02:28]} 19. Rhf1 {[%clk 0:01:17]}  Rxh2 {[%clk 0:02:21]} 20. Rxf8 {[%clk 0:01:16]}  Rb4 {[%clk 0:02:02]} 21. Nxd5 {[%clk 0:01:04]}  exd5 {[%clk 0:02:01]} 22. Bf5+ {[%clk 0:01:04]}  Ke7 {[%clk 0:01:56]} 23. Rxc8 {[%clk 0:01:03]}  Rxg2 {[%clk 0:01:51]} 24. Rxd5 {[%clk 0:00:39]}  Rf4 {[%clk 0:01:44]} 25. b3 {[%clk 0:00:39]}  g4 {[%clk 0:01:38]} 26. Rc6 {[%clk 0:00:38]}  Rgf2 {[%clk 0:01:28]} 27. Rd7+ {[%clk 0:00:37]}  Ke8 {[%clk 0:01:26]} 28. Rc8# {[%clk 0:00:38]} 1-0


[Site "https://www.chess.com"]

[Event "Titled Tuesday Blitz April 18 Late 2023"]
[White "Averjanov, Alexey"]
[Black "Napoli, Nicolo"]
[WhiteFideId "14109867"]
[BlackFideId "813702"]
[WhiteElo "2619"]
[BlackElo "2308"]
[Result "1-0"]
[Round "02"]
[TimeControl "180+2"]
[Date "2023.04.18"]
[WhiteClock "0:00:35"]
[BlackClock "0:00:02"]

1. d4 {[%clk 0:03:00]}  g6 {[%clk 0:02:53]} 2. c4 {[%clk 0:03:00]}  Bg7 {[%clk 0:02:51]} 3. Nf3 {[%clk 0:03:00]}  d6 {[%clk 0:02:38]} 4. g3 {[%clk 0:02:59]}  Nc6 {[%clk 0:02:31]} 5. Bg2 {[%clk 0:02:59]}  e5 {[%clk 0:02:26]} 6. d5 {[%clk 0:02:59]}  Nce7 {[%clk 0:02:24]} 7. e4 {[%clk 0:02:59]}  f5 {[%clk 0:02:23]} 8. Nc3 {[%clk 0:02:59]}  Nf6 {[%clk 0:02:22]} 9. exf5 {[%clk 0:03:00]}  Bxf5 {[%clk 0:02:18]} 10. Ng5 {[%clk 0:02:58]}  O-O {[%clk 0:02:10]} 11. O-O {[%clk 0:02:56]}  Qd7 {[%clk 0:02:07]} 12. Qe2 {[%clk 0:02:50]}  h6 {[%clk 0:02:06]} 13. Nge4 {[%clk 0:02:48]}  Bh3 {[%clk 0:01:56]} 14. Bd2 {[%clk 0:02:46]}  Bxg2 {[%clk 0:01:55]} 15. Kxg2 {[%clk 0:02:47]}  Kh7 {[%clk 0:01:55]} 16. Rae1 {[%clk 0:02:44]}  Rf7 {[%clk 0:01:52]} 17. f4 {[%clk 0:02:42]}  Nxe4 {[%clk 0:01:44]} 18. Nxe4 {[%clk 0:02:41]}  Raf8 {[%clk 0:01:44]} 19. b3 {[%clk 0:02:38]}  Nf5 {[%clk 0:01:40]} 20. fxe5 {[%clk 0:02:36]}  Bxe5 {[%clk 0:01:37]} 21. Qd3 {[%clk 0:02:34]}  Nd4 {[%clk 0:01:31]} 22. Rxf7+ {[%clk 0:02:32]}  Qxf7 {[%clk 0:01:26]} 23. Rf1 {[%clk 0:02:30]}  Qxf1+ {[%clk 0:01:25]} 24. Qxf1 {[%clk 0:02:31]}  Rxf1 {[%clk 0:01:25]} 25. Kxf1 {[%clk 0:02:32]}  Nf3 {[%clk 0:01:25]} 26. Be3 {[%clk 0:02:21]}  b6 {[%clk 0:01:16]} 27. h3 {[%clk 0:02:18]}  Nd4 {[%clk 0:01:11]} 28. Kf2 {[%clk 0:02:09]}  Nf5 {[%clk 0:01:11]} 29. Bd2 {[%clk 0:02:05]}  Kg7 {[%clk 0:01:11]} 30. g4 {[%clk 0:02:05]}  Bd4+ {[%clk 0:01:07]} 31. Kf3 {[%clk 0:02:04]}  Nh4+ {[%clk 0:01:06]} 32. Kg3 {[%clk 0:02:00]}  g5 {[%clk 0:01:06]} 33. Nc3 {[%clk 0:01:52]}  a6 {[%clk 0:01:01]} 34. Ne2 {[%clk 0:01:48]}  Be5+ {[%clk 0:01:01]} 35. Kf2 {[%clk 0:01:48]}  Ng6 {[%clk 0:01:02]} 36. Be3 {[%clk 0:01:33]}  Kf6 {[%clk 0:01:01]} 37. Kf3 {[%clk 0:01:33]}  Nh4+ {[%clk 0:01:01]} 38. Ke4 {[%clk 0:01:31]}  Ng6 {[%clk 0:01:02]} 39. Nd4 {[%clk 0:01:29]}  Bxd4 {[%clk 0:00:52]} 40. Bxd4+ {[%clk 0:01:30]}  Kf7 {[%clk 0:00:53]} 41. b4 {[%clk 0:01:25]}  Ne7 {[%clk 0:00:51]} 42. a4 {[%clk 0:01:21]}  Ng6 {[%clk 0:00:36]} 43. c5 {[%clk 0:01:15]}  bxc5 {[%clk 0:00:34]} 44. bxc5 {[%clk 0:01:16]}  Nf4 {[%clk 0:00:35]} 45. h4 {[%clk 0:01:15]}  Ng6 {[%clk 0:00:22]} 46. h5 {[%clk 0:01:11]}  Nf4 {[%clk 0:00:19]} 47. c6 {[%clk 0:01:07]}  Ne2 {[%clk 0:00:16]} 48. Bb6 {[%clk 0:00:57]}  Nc3+ {[%clk 0:00:12]} 49. Kd4 {[%clk 0:00:57]}  Nxa4 {[%clk 0:00:09]} 50. Bxc7 {[%clk 0:00:57]}  Ke7 {[%clk 0:00:10]} 51. Ba5 {[%clk 0:00:54]}  Nc5 {[%clk 0:00:10]} 52. Bb4 {[%clk 0:00:51]}  Na4 {[%clk 0:00:08]} 53. Ke4 {[%clk 0:00:49]}  Nb6 {[%clk 0:00:08]} 54. Ba5 {[%clk 0:00:46]}  Nc4 {[%clk 0:00:08]} 55. Bc3 {[%clk 0:00:44]}  a5 {[%clk 0:00:05]} 56. Bg7 {[%clk 0:00:44]}  a4 {[%clk 0:00:05]} 57. Bxh6 {[%clk 0:00:43]}  Kf6 {[%clk 0:00:04]} 58. c7 {[%clk 0:00:37]}  Nb6 {[%clk 0:00:04]} 59. Kd3 {[%clk 0:00:35]}  a3 {[%clk 0:00:02]} 60. Kc2 {[%clk 0:00:35]} 1-0


[Site "https://www.chess.com"]

[Event "Titled Tuesday Blitz April 18 Late 2023"]
[White "Fier, Alexandr"]
[Black "Todorovic, Bojan"]
[WhiteFideId "2107139"]
[BlackFideId "917087"]
[WhiteElo "2610"]
[BlackElo "2266"]
[Result "1-0"]
[Round "02"]
[TimeControl "180+2"]
[Date "2023.04.18"]
[WhiteClock "0:01:32"]
[BlackClock "0:00:05"]

1. d4 {[%clk 0:02:54]}  Nf6 {[%clk 0:02:58]} 2. Bg5 {[%clk 0:02:49]}  g6 {[%clk 0:02:56]} 3. Bxf6 {[%clk 0:02:49]}  exf6 {[%clk 0:02:55]} 4. e3 {[%clk 0:02:48]}  Bg7 {[%clk 0:02:52]} 5. h4 {[%clk 0:02:49]}  h5 {[%clk 0:02:51]} 6. Nc3 {[%clk 0:02:47]}  f5 {[%clk 0:02:47]} 7. Nge2 {[%clk 0:02:46]}  d6 {[%clk 0:02:29]} 8. Nf4 {[%clk 0:02:45]}  Nd7 {[%clk 0:02:24]} 9. Bc4 {[%clk 0:02:45]}  Nf6 {[%clk 0:02:21]} 10. Qf3 {[%clk 0:02:43]}  c6 {[%clk 0:02:20]} 11. Bb3 {[%clk 0:02:42]}  d5 {[%clk 0:02:17]} 12. Nd3 {[%clk 0:02:39]}  Ne4 {[%clk 0:02:11]} 13. Ne2 {[%clk 0:02:37]}  a5 {[%clk 0:02:05]} 14. a4 {[%clk 0:02:36]}  O-O {[%clk 0:01:55]} 15. c4 {[%clk 0:02:33]}  Be6 {[%clk 0:01:52]} 16. c5 {[%clk 0:02:28]}  b6 {[%clk 0:01:47]} 17. cxb6 {[%clk 0:02:23]}  Qxb6 {[%clk 0:01:47]} 18. Bc2 {[%clk 0:02:23]}  c5 {[%clk 0:01:41]} 19. dxc5 {[%clk 0:02:23]}  Nxc5 {[%clk 0:01:40]} 20. O-O {[%clk 0:02:16]}  Nb3 {[%clk 0:01:16]} 21. Bxb3 {[%clk 0:02:09]}  Qxb3 {[%clk 0:01:16]} 22. Nef4 {[%clk 0:02:10]}  Rac8 {[%clk 0:01:06]} 23. Rac1 {[%clk 0:02:09]}  Rc4 {[%clk 0:01:05]} 24. Nxe6 {[%clk 0:02:07]}  fxe6 {[%clk 0:01:04]} 25. Nf4 {[%clk 0:02:08]}  Kf7 {[%clk 0:00:54]} 26. Rcd1 {[%clk 0:02:08]}  Rfc8 {[%clk 0:00:46]} 27. Qg3 {[%clk 0:01:58]}  Rxf4 {[%clk 0:00:34]} 28. Qxf4 {[%clk 0:01:57]}  Rc4 {[%clk 0:00:34]} 29. Qg3 {[%clk 0:01:51]}  Qxa4 {[%clk 0:00:26]} 30. Qb8 {[%clk 0:01:50]}  Qb4 {[%clk 0:00:24]} 31. Qa7+ {[%clk 0:01:50]}  Kg8 {[%clk 0:00:24]} 32. Qa6 {[%clk 0:01:50]}  Kf7 {[%clk 0:00:22]} 33. Ra1 {[%clk 0:01:46]}  a4 {[%clk 0:00:20]} 34. Rac1 {[%clk 0:01:39]}  Bxb2 {[%clk 0:00:19]} 35. Rxc4 {[%clk 0:01:39]}  dxc4 {[%clk 0:00:19]} 36. Rd1 {[%clk 0:01:38]}  Bf6 {[%clk 0:00:15]} 37. Rd7+ {[%clk 0:01:33]}  Be7 {[%clk 0:00:15]} 38. Qa7 {[%clk 0:01:31]}  a3 {[%clk 0:00:15]} 39. Rb7 {[%clk 0:01:31]}  Qe1+ {[%clk 0:00:14]} 40. Kh2 {[%clk 0:01:32]}  Qxf2 {[%clk 0:00:04]} 41. Rxe7+ {[%clk 0:01:31]}  Kf6 {[%clk 0:00:04]} 42. Rf7+ {[%clk 0:01:31]}  Ke5 {[%clk 0:00:05]} 43. Qd4# {[%clk 0:01:32]} 1-0


[Site "https://www.chess.com"]

[Event "Titled Tuesday Blitz April 18 Late 2023"]
[White "Goltsev, Dmitry"]
[Black "Ansh M Shah"]
[WhiteFideId "24176710"]
[BlackFideId "25033379"]
[WhiteElo "2336"]
[BlackElo "2084"]
[Result "0-1"]
[Round "02"]
[TimeControl "180+2"]
[Date "2023.04.18"]
[WhiteClock "0:00:07"]
[BlackClock "0:00:15"]

1. e4 {[%clk 0:02:56]}  c6 {[%clk 0:03:00]} 2. d4 {[%clk 0:02:55]}  d5 {[%clk 0:03:00]} 3. Nc3 {[%clk 0:02:56]}  dxe4 {[%clk 0:02:57]} 4. Nxe4 {[%clk 0:02:57]}  Bf5 {[%clk 0:02:57]} 5. Ng3 {[%clk 0:02:57]}  Bg6 {[%clk 0:02:58]} 6. Nh3 {[%clk 0:02:57]}  Nf6 {[%clk 0:02:57]} 7. Nf4 {[%clk 0:02:55]}  e5 {[%clk 0:02:58]} 8. dxe5 {[%clk 0:02:55]}  Qxd1+ {[%clk 0:02:49]} 9. Kxd1 {[%clk 0:02:54]}  Ng4 {[%clk 0:02:49]} 10. Nxg6 {[%clk 0:02:38]}  hxg6 {[%clk 0:02:49]} 11. Ne4 {[%clk 0:02:38]}  Nxe5 {[%clk 0:02:45]} 12. Bf4 {[%clk 0:02:38]}  Nbd7 {[%clk 0:02:45]} 13. c3 {[%clk 0:02:37]}  O-O-O {[%clk 0:02:44]} 14. Kc2 {[%clk 0:02:37]}  Ng4 {[%clk 0:02:25]} 15. Rd1 {[%clk 0:02:31]}  Ndf6 {[%clk 0:02:17]} 16. Rxd8+ {[%clk 0:02:22]}  Kxd8 {[%clk 0:02:18]} 17. Nxf6 {[%clk 0:02:14]}  gxf6 {[%clk 0:02:05]} 18. f3 {[%clk 0:02:12]}  Nf2 {[%clk 0:01:51]} 19. Rg1 {[%clk 0:02:12]}  Bc5 {[%clk 0:01:50]} 20. Bc4 {[%clk 0:02:11]}  b5 {[%clk 0:00:43]} 21. Bxf7 {[%clk 0:01:42]}  Ke7 {[%clk 0:00:43]} 22. Bxg6 {[%clk 0:01:42]}  Nd3 {[%clk 0:00:42]} 23. Bxd3 {[%clk 0:01:36]}  Bxg1 {[%clk 0:00:41]} 24. h3 {[%clk 0:01:34]}  Rg8 {[%clk 0:00:36]} 25. g4 {[%clk 0:01:27]}  Rh8 {[%clk 0:00:36]} 26. Bf1 {[%clk 0:01:27]}  Bf2 {[%clk 0:00:32]} 27. Bg2 {[%clk 0:01:22]}  Bh4 {[%clk 0:00:32]} 28. Be3 {[%clk 0:01:22]}  Kd6 {[%clk 0:00:27]} 29. f4 {[%clk 0:01:21]}  Re8 {[%clk 0:00:26]} 30. Kd3 {[%clk 0:01:21]}  c5 {[%clk 0:00:24]} 31. Ke2 {[%clk 0:00:56]}  a5 {[%clk 0:00:14]} 32. Kd2 {[%clk 0:00:43]}  b4 {[%clk 0:00:08]} 33. c4 {[%clk 0:00:40]}  a4 {[%clk 0:00:08]} 34. Bd5 {[%clk 0:00:37]}  a3 {[%clk 0:00:06]} 35. b3 {[%clk 0:00:33]}  Bg3 {[%clk 0:00:05]} 36. Bg2 {[%clk 0:00:27]}  Be1+ {[%clk 0:00:04]} 37. Kd3 {[%clk 0:00:26]}  Bh4 {[%clk 0:00:03]} 38. Bd5 {[%clk 0:00:24]}  Be1 {[%clk 0:00:03]} 39. Ke2 {[%clk 0:00:23]}  Bc3 {[%clk 0:00:04]} 40. Kf3 {[%clk 0:00:21]}  Bb2 {[%clk 0:00:04]} 41. g5 {[%clk 0:00:19]}  Bd4 {[%clk 0:00:04]} 42. Bd2 {[%clk 0:00:17]}  fxg5 {[%clk 0:00:05]} 43. fxg5 {[%clk 0:00:17]}  Rf8+ {[%clk 0:00:05]} 44. Kg4 {[%clk 0:00:13]}  Rf2 {[%clk 0:00:05]} 45. Bf4+ {[%clk 0:00:09]}  Kd7 {[%clk 0:00:05]} 46. g6 {[%clk 0:00:09]}  Rxa2 {[%clk 0:00:04]} 47. Bh6 {[%clk 0:00:04]}  Ra1 {[%clk 0:00:04]} 48. Kf5 {[%clk 0:00:03]}  Rg1 {[%clk 0:00:04]} 49. Bg5 {[%clk 0:00:02]}  a2 {[%clk 0:00:03]} 50. Be6+ {[%clk 0:00:03]}  Kc6 {[%clk 0:00:03]} 51. Bf4 {[%clk 0:00:03]}  a1=Q {[%clk 0:00:03]} 52. Bd5+ {[%clk 0:00:04]}  Kb6 {[%clk 0:00:03]} 53. Bf7 {[%clk 0:00:04]}  Qb1+ {[%clk 0:00:04]} 54. Ke6 {[%clk 0:00:04]}  Qe4+ {[%clk 0:00:04]} 55. Kd7 {[%clk 0:00:04]}  Rxg6 {[%clk 0:00:05]} 56. Bxg6 {[%clk 0:00:03]}  Qxg6 {[%clk 0:00:06]} 57. Bd6 {[%clk 0:00:03]}  Qf7+ {[%clk 0:00:06]} 58. Be7 {[%clk 0:00:02]}  Qh5 {[%clk 0:00:07]} 59. h4 {[%clk 0:00:02]}  Bf2 {[%clk 0:00:07]} 60. Ke6 {[%clk 0:00:02]}  Bxh4 {[%clk 0:00:08]} 61. Bd6 {[%clk 0:00:02]}  Qg4+ {[%clk 0:00:08]} 62. Kd5 {[%clk 0:00:02]}  Bg3 {[%clk 0:00:08]} 63. Bf4 {[%clk 0:00:02]}  Qf3+ {[%clk 0:00:07]} 64. Kd6 {[%clk 0:00:01]}  Qxf4+ {[%clk 0:00:07]} 65. Kd7 {[%clk 0:00:02]}  Qc7+ {[%clk 0:00:07]} 66. Ke6 {[%clk 0:00:02]}  Qd6+ {[%clk 0:00:07]} 67. Kf5 {[%clk 0:00:02]}  Qe5+ {[%clk 0:00:08]} 68. Kg4 {[%clk 0:00:02]}  Be1 {[%clk 0:00:08]} 69. Kh3 {[%clk 0:00:03]}  Bc3 {[%clk 0:00:08]} 70. Kg2 {[%clk 0:00:04]}  Kc6 {[%clk 0:00:09]} 71. Kf3 {[%clk 0:00:05]}  Qd4 {[%clk 0:00:10]} 72. Ke2 {[%clk 0:00:05]}  Kd6 {[%clk 0:00:11]} 73. Kf3 {[%clk 0:00:06]}  Ke5 {[%clk 0:00:11]} 74. Kg3 {[%clk 0:00:06]}  Qe4 {[%clk 0:00:12]} 75. Kf2 {[%clk 0:00:06]}  Qd3 {[%clk 0:00:12]} 76. Kg1 {[%clk 0:00:07]}  Qe2 {[%clk 0:00:13]} 77. Kh1 {[%clk 0:00:07]}  Kf4 {[%clk 0:00:14]} 78. Kg1 {[%clk 0:00:07]}  Kg3 {[%clk 0:00:15]} 79. Kh1 {[%clk 0:00:07]}  Qe1# {[%clk 0:00:15]} 0-1


[Site "https://www.chess.com"]

[Event "Titled Tuesday Blitz April 18 Late 2023"]
[White "Ashraf, Artin"]
[Black "Mickiewicz, Piotr"]
[WhiteFideId "22514805"]
[BlackFideId "1114891"]
[WhiteElo "2188"]
[BlackElo "2246"]
[Result "1-0"]
[Round "02"]
[TimeControl "180+2"]
[Date "2023.04.18"]
[WhiteClock "0:01:48"]
[BlackClock "0:00:11"]

1. e4 {[%clk 0:03:00]}  e5 {[%clk 0:02:58]} 2. Nf3 {[%clk 0:03:01]}  Nf6 {[%clk 0:02:58]} 3. Nc3 {[%clk 0:02:58]}  Nc6 {[%clk 0:02:56]} 4. Bb5 {[%clk 0:02:58]}  Bd6 {[%clk 0:02:54]} 5. O-O {[%clk 0:02:58]}  O-O {[%clk 0:02:53]} 6. d3 {[%clk 0:02:49]}  a6 {[%clk 0:02:49]} 7. Bc4 {[%clk 0:02:47]}  b5 {[%clk 0:02:47]} 8. Bb3 {[%clk 0:02:42]}  Na5 {[%clk 0:02:46]} 9. Bg5 {[%clk 0:02:40]}  h6 {[%clk 0:02:34]} 10. Bh4 {[%clk 0:02:37]}  Nxb3 {[%clk 0:02:24]} 11. axb3 {[%clk 0:02:36]}  Bb7 {[%clk 0:02:25]} 12. d4 {[%clk 0:02:32]}  exd4 {[%clk 0:02:03]} 13. Qxd4 {[%clk 0:02:33]}  Be7 {[%clk 0:01:56]} 14. Rad1 {[%clk 0:02:25]}  b4 {[%clk 0:01:31]} 15. Nd5 {[%clk 0:02:16]}  Nxd5 {[%clk 0:01:15]} 16. exd5 {[%clk 0:02:17]}  Bxh4 {[%clk 0:01:10]} 17. Nxh4 {[%clk 0:02:18]}  a5 {[%clk 0:00:50]} 18. Rd3 {[%clk 0:02:14]}  Qf6 {[%clk 0:00:02]} 19. Qxf6 {[%clk 0:02:10]}  gxf6 {[%clk 0:00:03]} 20. Nf5 {[%clk 0:02:10]}  Kh7 {[%clk 0:00:04]} 21. Rh3 {[%clk 0:02:06]}  Ba6 {[%clk 0:00:01]} 22. Rxh6+ {[%clk 0:02:04]}  Kg8 {[%clk 0:00:02]} 23. Re1 {[%clk 0:01:57]}  Rfe8 {[%clk 0:00:02]} 24. Re3 {[%clk 0:01:55]}  Rxe3 {[%clk 0:00:02]} 25. fxe3 {[%clk 0:01:55]}  Re8 {[%clk 0:00:02]} 26. Rxf6 {[%clk 0:01:56]}  Bb7 {[%clk 0:00:03]} 27. d6 {[%clk 0:01:53]}  cxd6 {[%clk 0:00:02]} 28. Nxd6 {[%clk 0:01:52]}  Rb8 {[%clk 0:00:03]} 29. Rxf7 {[%clk 0:01:47]}  Bc6 {[%clk 0:00:03]} 30. Rf5 {[%clk 0:01:44]}  Ra8 {[%clk 0:00:03]} 31. Rf4 {[%clk 0:01:43]}  a4 {[%clk 0:00:04]} 32. Rxb4 {[%clk 0:01:43]}  Ra6 {[%clk 0:00:05]} 33. Nf5 {[%clk 0:01:40]}  a3 {[%clk 0:00:05]} 34. bxa3 {[%clk 0:01:39]}  Rxa3 {[%clk 0:00:05]} 35. Ne7+ {[%clk 0:01:39]}  Kf7 {[%clk 0:00:04]} 36. Nxc6 {[%clk 0:01:40]}  dxc6 {[%clk 0:00:05]} 37. Rc4 {[%clk 0:01:41]}  Ra6 {[%clk 0:00:05]} 38. h4 {[%clk 0:01:41]}  Ke6 {[%clk 0:00:06]} 39. g4 {[%clk 0:01:41]}  Kd6 {[%clk 0:00:07]} 40. Kg2 {[%clk 0:01:42]}  Ra5 {[%clk 0:00:08]} 41. Kg3 {[%clk 0:01:43]}  Ra1 {[%clk 0:00:08]} 42. Kf4 {[%clk 0:01:44]}  Rg1 {[%clk 0:00:08]} 43. Kg5 {[%clk 0:01:44]}  Rh1 {[%clk 0:00:09]} 44. h5 {[%clk 0:01:45]}  Re1 {[%clk 0:00:09]} 45. Kh6 {[%clk 0:01:46]}  Rxe3 {[%clk 0:00:10]} 46. g5 {[%clk 0:01:47]}  Rg3 {[%clk 0:00:11]} 47. g6 {[%clk 0:01:47]}  Kd5 {[%clk 0:00:11]} 48. Kh7 {[%clk 0:01:47]}  Rg5 {[%clk 0:00:11]} 49. h6 {[%clk 0:01:48]} 1-0


[Site "https://www.chess.com"]